bitfinex/quotes_SOLUSD_20250316
["timestamp","ask_amount","ask_price","bid_price","bid_amount"]
[1742153419961,27.06122325,127.23,127.2,6.6808]
[1742153420565,27.06122325,127.23,127.2,12.97]
[1742153421382,27.06122325,127.23,127.2,6.6808]
[1742153422076,14.9465,127.26,127.2,12.9698]
[1742153422378,42.00772325,127.26,127.21,27.06122325]
[1742153422878,27.06122325,127.25,127.2,40.03102325]
[1742153423588,14.9465,127.26,127.21,27.06122325]
[1742153423882,27.06122325,127.26,127.21,27.06122325]
[1742153424184,33.34762325,127.26,127.21,27.06122325]
[1742153425285,33.34762325,127.26,127.21,33.34982325]
[1742153426381,33.34762325,127.26,127.21,6.2886]
[1742153426578,27.06122325,127.24,127.2,6.6808]
[1742153426770,27.06122325,127.21,127.17,6.6808]
[1742153426965,27.06122325,127.19,127.16,3.7154]
[1742153427379,27.06122325,127.17,127.16,0.03]
[1742153427577,41.1,127.2,127.16,0.03]
[1742153427778,27.06122325,127.21,127.16,27.09122325]
[1742153428383,33.34992325,127.22,127.16,33.38242325]
[1742153428581,8.66,127.24,127.19,27.06122325]
[1742153428797,35.72122325,127.24,127.19,27.06122325]
[1742153429288,35.72122325,127.24,127.2,27.06122325]
[1742153429465,27.06122325,127.26,127.2,27.06122325]
[1742153429666,35.72122325,127.28,127.23,27.06122325]
[1742153429979,33.34612325,127.29,127.24,27.06122325]
[1742153430171,27.12422325,127.3,127.25,27.06122325]
[1742153430493,0.063,127.3,127.26,33.34752325]
[1742153430698,27.12422325,127.3,127.26,6.2863]
[1742153431479,33.40862325,127.3,127.25,27.06122325]
[1742153432171,6.3474,127.3,127.24,10.4774]
[1742153432403,27.06122325,127.28,127.24,10.4774]
[1742153432609,33.34662325,127.28,127.24,10.4774]
[1742153433199,27.06122325,127.28,127.24,16.7646]
[1742153433388,27.06122325,127.29,127.24,43.82582325]
[1742153433899,27.06122325,127.26,127.24,3.4937]
[1742153434082,27.06122325,127.26,127.21,13.5323]
[1742153434401,33.34752325,127.26,127.21,40.59352325]
[1742153434606,27.06122325,127.26,127.21,40.59352325]
[1742153434775,27.06122325,127.27,127.22,27.06122325]
[1742153435872,27.06122325,127.27,127.22,33.34912325]
[1742153436706,33.34712325,127.27,127.22,6.0879]
[1742153437802,0.063,127.3,127.26,27.06122325]
[1742153438006,0.063,127.3,127.27,27.06122325]
[1742153438396,0.063,127.3,127.27,3.6628]
[1742153438580,0.063,127.3,127.27,30.72402325]
[1742153439810,0.063,127.3,127.27,37.00972325]
[1742153440109,27.06122325,127.29,127.24,30.72402325]
[1742153440285,27.06122325,127.26,127.24,3.6628]
[1742153440485,27.06122325,127.26,127.22,0.17216157]
[1742153440684,8.703,127.3,127.22,0.17216157]
[1742153440685,27.06122325,127.24,127.22,0.03]
[1742153441084,27.06122325,127.26,127.22,0.03]
[1742153441284,27.06122325,127.28,127.22,33.37942325]
[1742153442284,33.34662325,127.28,127.23,27.06122325]
[1742153442479,27.06122325,127.27,127.22,27.09122325]
[1742153442792,27.06122325,127.24,127.22,0.03]
[1742153443206,27.06122325,127.23,127.22,0.03]
[1742153443403,45.71087211,127.23,127.22,0.03]
[1742153444202,51.99867211,127.23,127.22,0.03]
[1742153444708,33.34902325,127.23,127.22,0.03]
[1742153445304,32.72639469,127.23,127.22,0.03]
[1742153445805,39.01419469,127.23,127.22,0.03]
[1742153446001,5.66517144,127.23,127.22,0.03]
[1742153448213,33.34872325,127.24,127.22,0.03]
[1742153449213,27.28964886,127.27,127.22,0.03]
[1742153449520,24.93494886,127.28,127.22,27.09122325]
[1742153449691,27.06122325,127.27,127.22,33.92292325]
[1742153450595,33.34652325,127.28,127.23,27.06122325]
[1742153450901,27.06122325,127.29,127.24,36.95962325]
[1742153451111,5.67069717,127.26,127.24,36.95962325]
[1742153451486,5.67069717,127.26,127.24,9.8984]
[1742153452008,33.34602325,127.29,127.24,9.8984]
[1742153452206,33.34602325,127.29,127.24,3.6116]
[1742153452598,0.063,127.27,127.24,3.6116]
[1742153454210,27.06122325,127.26,127.22,0.03]
[1742153454407,27.12422325,127.27,127.22,33.37942325]
[1742153455619,0.063,127.27,127.22,33.37942325]
[1742153455805,0.063,127.27,127.23,27.06122325]
[1742153456309,0.063,127.27,127.22,33.37942325]
[1742153456499,0.063,127.27,127.22,27.09122325]
[1742153456697,27.12422325,127.27,127.22,27.09122325]
[1742153457097,27.06122325,127.25,127.22,0.03]
[1742153457302,27.06122325,127.24,127.22,0.03]
[1742153457823,33.34892325,127.24,127.22,0.03]
[1742153458930,27.06122325,127.23,127.22,0.03]
[1742153459929,33.34902325,127.23,127.22,0.03]
[1742153461120,57.6772343,127.23,127.22,0.03]
[1742153461999,5.67856219,127.23,127.22,0.03]
[1742153462222,11.96636219,127.23,127.22,0.03]
[1742153462523,57.6772343,127.23,127.22,0.03]
[1742153462741,0.28432314,127.21,127.16,0.03]
[1742153463023,27.06122325,127.18,127.16,0.03]
[1742153463206,27.06122325,127.19,127.16,0.03]
[1742153463620,8.62,127.2,127.16,0.03]
[1742153463621,35.68122325,127.2,127.16,0.03]
[1742153463821,27.06122325,127.17,127.16,0.03]
[1742153464025,33.35192325,127.17,127.16,0.03]
[1742153464804,52.00157211,127.17,127.16,0.03]
[1742153465520,57.95063539,127.17,127.16,0.0001]
[1742153465831,57.95063539,127.17,127.13,0.0001]
[1742153465832,38.933972,127.14,127.13,0.0001]
[1742153466003,107.9686185,127.14,127.13,0.0001]
[1742153466204,123.6992185,127.14,127.11,2.1552329]
[1742153466406,0.28432314,127.12,127.11,3.29e-05]
[1742153466627,18.933972,127.11,127.1,3.29e-05]
[1742153466810,45.99519525,127.11,127.1,3.29e-05]
[1742153467003,0.28432314,127.1,127.09,0.0001]
[1742153467202,18.64964886,127.08,127.07,0.03]
[1742153467406,54.33087211,127.08,127.07,0.03]
[1742153467916,27.06122325,127.1,127.07,0.03]
[1742153468333,45.71087211,127.11,127.07,0.03]
[1742153468623,27.06122325,127.1,127.07,0.03]
[1742153468805,27.06122325,127.08,127.07,0.03]
[1742153470324,79.06729536,127.08,127.07,0.03]
[1742153470525,79.3516185,127.08,127.07,0.03]
[1742153471450,0.14216157,127.06,127.05,0.03]
[1742153471736,35.98554639,127.06,127.05,0.03]
[1742153471934,8.64,127.06,127.05,0.03]
[1742153472144,35.70122325,127.06,127.05,0.03]
[1742153472772,8.64,127.06,127.05,0.03]
[1742153472926,27.06122325,127.09,127.05,0.03]
[1742153473335,27.06122325,127.08,127.05,0.03]
[1742153473842,35.68122325,127.11,127.05,34.25862325]
[1742153474138,27.06122325,127.09,127.05,7.1974]
[1742153474340,27.06122325,127.06,127.05,0.03]
[1742153474541,35.68122325,127.06,127.05,0.03]
[1742153476134,0.28432314,127.05,127.03,0.03]
[1742153476442,120.4536185,127.04,127.03,0.03]
[1742153476619,27.06122325,126.98,126.95,3.5078]
[1742153476947,27.06122325,126.99,126.95,3.5078]
[1742153477124,27.06122325,126.97,126.94,7.1564]
[1742153477320,27.06122325,126.95,126.91,3.5078]
[1742153477725,41.1,126.98,126.94,27.06122325]
[1742153477935,27.06122325,127.02,126.95,27.06122325]
[1742153477936,35.68122325,127.0,126.95,27.06122325]
[1742153478141,27.06122325,126.99,126.95,0.03]
[1742153479318,27.06122325,126.98,126.95,0.03]
[1742153479525,27.06122325,126.97,126.95,0.03]
[1742153479943,27.06122325,126.96,126.95,0.03]
[1742153480329,45.99519525,126.96,126.95,0.03]
[1742153480646,52.29629525,126.96,126.95,0.03]
[1742153480842,52.01197211,126.96,126.95,0.03]
[1742153481145,6.3011,126.96,126.95,0.03]
[1742153481447,33.36232325,126.96,126.95,0.03]
[1742153485062,52.01197211,126.96,126.95,0.03]
[1742153485425,41.1,126.95,126.88,7.1564]
[1742153485751,95.1104185,126.96,126.87,0.07210228]
[1742153485752,27.06122325,126.89,126.87,0.07210228]
[1742153485938,35.68122325,126.88,126.87,0.07210228]
[1742153486953,60.63597211,126.88,126.87,2.28e-06]
[1742153488855,41.98632325,126.88,126.87,2.28e-06]
[1742153489036,33.36632325,126.88,126.87,2.28e-06]
[1742153489231,41.98632325,126.88,126.87,2.28e-06]
[1742153489645,14.9251,126.88,126.87,2.28e-06]
[1742153490136,8.62,126.88,126.87,0.03000228]
[1742153491350,41.1,126.92,126.87,27.09122553]
[1742153491540,33.36382325,126.93,126.88,27.06122325]
[1742153491744,8.62,126.94,126.89,30.70202325]
[1742153491944,8.62,126.94,126.9,27.06122325]
[1742153492140,8.62,126.94,126.91,27.06122325]
[1742153492345,27.06122325,126.95,126.9,27.06122325]
[1742153492643,6.3012,126.96,126.9,27.06122325]
[1742153492847,27.06122325,126.95,126.9,27.06122325]
[1742153493248,33.36292325,126.95,126.9,27.06122325]
[1742153494455,33.36292325,126.95,126.9,33.36522325]
[1742153494665,27.06122325,126.95,126.9,33.36522325]
[1742153494845,27.06122325,126.96,126.91,27.06122325]
[1742153495349,33.36282325,126.96,126.91,27.06122325]
[1742153495543,33.36282325,126.96,126.91,33.36482325]
[1742153495856,33.36282325,126.96,126.91,27.06122325]
[1742153496039,27.06122325,126.95,126.9,33.36522325]
[1742153496835,33.36292325,126.95,126.9,33.36522325]
[1742153497041,27.06122325,126.95,126.9,33.36522325]
[1742153497367,33.36252325,126.96,126.91,27.06122325]
[1742153497660,27.06122325,126.96,126.91,27.06122325]
[1742153498639,6.3008,126.97,126.91,27.06122325]
[1742153498841,27.06122325,126.96,126.91,27.06122325]
[1742153499064,33.36242325,126.96,126.91,27.06122325]
[1742153499563,33.36132325,126.99,126.94,27.06122325]
[1742153499763,27.06122325,126.97,126.92,27.06122325]
[1742153500964,27.06122325,126.98,126.93,27.06122325]
[1742153501359,27.06122325,126.97,126.92,27.06122325]
[1742153501861,27.06122325,126.97,126.9,6.3041]
[1742153501862,27.06122325,126.98,126.93,27.06122325]
[1742153502067,27.06122325,126.94,126.89,37.00642325]
[1742153502742,27.06122325,126.95,126.9,27.06122325]
[1742153503145,33.36302325,126.95,126.9,27.06122325]
[1742153503570,27.06122325,126.95,126.9,33.36522325]
[1742153503766,33.36202325,126.97,126.92,27.06122325]
[1742153503959,27.06122325,126.96,126.91,27.06122325]
[1742153504139,33.36202325,126.97,126.91,27.06122325]
[1742153504346,6.3008,126.97,126.92,27.06122325]
[1742153504565,33.36202325,126.97,126.92,27.06122325]
[1742153505169,27.06122325,126.96,126.91,27.06122325]
[1742153505553,27.06122325,126.97,126.92,27.06122325]
[1742153505750,41.1,126.98,126.94,27.06122325]
[1742153505949,49.72,127.01,126.95,27.06122325]
[1742153506148,27.06122325,127.0,126.95,27.06122325]
[1742153506352,74.46002325,127.01,126.96,27.06122325]
[1742153506560,47.3988,127.01,126.97,27.06122325]
[1742153506757,74.46002325,127.01,126.95,33.99012325]
[1742153506957,74.46002325,127.01,126.96,27.06122325]
[1742153507161,6.2986,127.02,126.97,30.38902325]
[1742153507464,27.06122325,127.04,126.99,27.06122325]
[1742153507668,33.35802325,127.05,127.0,27.06122325]
[1742153507969,27.06122325,127.01,126.94,30.38902325]
[1742153508271,75.682072,127.0,126.9,9.6317]
[1742153508564,27.06122325,126.95,126.9,30.38902325]
[1742153509067,33.36292325,126.95,126.9,30.38902325]
[1742153509661,27.06122325,126.97,126.92,27.06122325]
[1742153509871,33.36142325,126.98,126.92,27.06122325]
[1742153510075,27.06122325,126.96,126.91,27.06122325]
[1742153510310,27.34554639,126.95,126.87,0.03000228]
[1742153510450,27.06122325,126.88,126.87,0.03000228]
[1742153510654,68.16122325,126.88,126.87,0.03000228]
[1742153511065,14.9247,126.89,126.87,0.03000228]
[1742153511243,8.62,126.89,126.87,0.03000228]
[1742153511581,35.68122325,126.93,126.87,27.09122553]
[1742153511772,75.18932325,126.97,126.92,27.06122325]
[1742153511950,33.36252325,126.96,126.91,27.06122325]
[1742153512150,27.06122325,126.95,126.9,27.06122325]
[1742153512545,22.0542,126.96,126.89,27.06122325]
[1742153512546,27.06122325,126.94,126.89,27.06122325]
[1742153512760,27.06122325,126.92,126.87,30.41902553]
[1742153512968,6.3036,126.91,126.87,30.41902553]
[1742153514057,33.36482325,126.91,126.87,0.03000228]
[1742153514257,27.06122325,126.9,126.87,0.03000228]
[1742153515393,6.3046,126.89,126.87,0.03000228]
[1742153515893,6.3041,126.9,126.87,27.09122553]
[1742153517589,6.3041,126.9,126.87,0.03000228]
[1742153518995,33.36532325,126.9,126.87,0.03000228]
[1742153519492,27.06122325,126.88,126.87,0.03000228]
[1742153519677,27.06122325,126.89,126.87,0.03000228]
[1742153520066,27.06122325,126.88,126.87,0.03000228]
[1742153520275,27.06122325,126.89,126.87,0.03000228]
[1742153520564,27.06122325,126.88,126.87,0.03000228]
[1742153520770,32.72128076,126.88,126.87,0.03000228]
[1742153521202,92.47092962,126.88,126.87,0.03000228]
[1742153521378,92.47092962,126.88,126.87,2.28e-06]
[1742153521563,98.77602962,126.88,126.87,2.28e-06]
[1742153522695,53.06515751,126.88,126.87,2.28e-06]
[1742153523493,5.66005751,126.88,126.87,2.28e-06]
[1742153524194,5.66005751,126.88,126.87,27.06122553]
[1742153524407,5.66005751,126.88,126.87,2.28e-06]
[1742153524778,84.10644886,126.93,126.87,27.06122553]
[1742153524779,6.3038,126.91,126.87,27.06122553]
[1742153525086,33.36452325,126.92,126.87,27.06122553]
[1742153525696,0.063,126.88,126.87,27.06122553]
[1742153526084,0.063,126.88,126.87,33.36682553]
[1742153526293,0.063,126.88,126.87,44.15102553]
[1742153526593,0.063,126.88,126.87,37.84542553]
[1742153526895,0.063,126.88,126.87,44.15102553]
[1742153529194,0.063,126.88,126.87,37.84542553]
[1742153529381,0.063,126.88,126.87,44.15102553]
[1742153530507,0.063,126.88,126.87,37.84542553]
[1742153530802,0.063,126.88,126.87,44.15102553]
[1742153533903,0.063,126.88,126.87,2.28e-06]
[1742153536286,0.063,126.88,126.87,27.06122553]
[1742153536496,0.063,126.88,126.87,33.65114867]
[1742153536696,47.4012,126.96,126.87,33.65114867]
[1742153537000,33.36242325,126.96,126.91,27.06122325]
[1742153537483,6.3012,126.96,126.92,27.06122325]
[1742153538377,33.36242325,126.96,126.91,27.06122325]
[1742153542284,6.3007,126.97,126.92,27.06122325]
[1742153542793,5.67389844,126.96,126.92,27.06122325]
[1742153543891,33.36192325,126.97,126.92,27.06122325]
[1742153544513,33.36192325,126.97,126.92,33.36412325]
[1742153544711,27.06122325,126.97,126.92,33.36412325]
[1742153545014,33.36202325,126.97,126.92,33.36412325]
[1742153545196,23.27919586,126.97,126.92,23.28129586]
[1742153545583,16.97839586,126.97,126.92,23.28129586]
[1742153545784,23.27909586,126.97,126.92,23.28129586]
[1742153546090,6.3001,126.99,126.93,16.97839586]
[1742153546299,16.97839586,126.98,126.93,16.97839586]
[1742153546700,23.27899586,126.98,126.93,16.97839586]
[1742153548806,16.97839586,126.97,126.92,16.97839586]
[1742153549588,6.2993,127.0,126.94,16.97839586]
[1742153549792,0.063,126.98,126.94,16.97839586]
[1742153550413,0.063,126.98,126.95,16.97839586]
[1742153551111,17.04139586,126.98,126.93,16.97839586]
[1742153551306,16.97839586,126.95,126.9,27.28009586]
[1742153551504,16.97839586,126.95,126.9,20.48699586]
[1742153551889,16.97839586,126.96,126.91,16.97839586]
[1742153552216,16.97839586,126.93,126.88,16.97839586]
[1742153552413,16.97839586,126.9,126.87,2.28e-06]
[1742153552590,59.74964886,126.93,126.87,2.28e-06]
[1742153552591,16.97839586,126.89,126.87,2.28e-06]
[1742153552998,16.97839586,126.9,126.87,2.28e-06]
[1742153553211,27.19422576,126.9,126.87,2.28e-06]
[1742153554316,14.8839,126.91,126.87,2.28e-06]
[1742153554484,27.19422576,126.88,126.87,2.28e-06]
[1742153555208,33.49852576,126.9,126.87,2.28e-06]
[1742153555405,27.19422576,126.9,126.87,2.28e-06]
[1742153555620,83.17802576,126.91,126.87,2.28e-06]
[1742153556409,27.19422576,126.9,126.87,2.28e-06]
[1742153556798,27.19422576,126.89,126.87,2.28e-06]
[1742153556982,27.19422576,126.9,126.87,2.28e-06]
[1742153557425,83.17802576,126.91,126.87,2.28e-06]
[1742153557717,42.07802576,126.91,126.87,2.28e-06]
[1742153558502,27.19422576,126.9,126.87,2.28e-06]
[1742153558815,8.58,126.91,126.87,2.28e-06]
[1742153559513,8.58,126.91,126.87,27.19422804]
[1742153560291,8.58,126.91,126.88,27.19422576]
[1742153560591,8.58,126.91,126.88,33.49902576]
[1742153560791,27.19422576,126.95,126.89,27.19422576]
[1742153560991,27.19422576,126.95,126.9,27.19422576]
[1742153561222,35.77422576,126.96,126.91,27.19422576]
[1742153561908,35.77422576,126.96,126.88,25.7231]
[1742153561909,5.67119861,126.94,126.93,27.19422576]
[1742153562704,5.67119861,126.94,126.93,33.49682576]
[1742153563013,0.063,126.95,126.93,33.49682576]
[1742153563211,0.063,126.95,126.94,27.19422576]
[1742153564115,0.063,126.95,126.93,33.49682576]
[1742153567004,0.063,126.95,126.9,27.19422576]
[1742153567197,27.19422576,126.91,126.87,2.28e-06]
[1742153567404,27.19422576,126.92,126.87,27.19422804]
[1742153567706,27.19422576,126.9,126.87,2.28e-06]
[1742153567900,44.4965,126.94,126.87,2.28e-06]
[1742153568215,44.4965,126.94,126.87,27.19422804]
[1742153568416,27.19422576,126.93,126.87,27.19422804]
[1742153569218,45.84387462,126.88,126.87,2.28e-06]
[1742153569418,59.74964886,126.87,126.85,2.7905551]
[1742153569720,27.19422576,126.86,126.85,2.7905551]
[1742153570805,32.86609708,126.86,126.85,2.7905551]
[1742153571233,39.17219708,126.86,126.85,2.7905551]
[1742153571524,5.67187132,126.86,126.85,2.7905551]
[1742153571722,11.97797132,126.86,126.85,2.7905551]
[1742153571920,6.3061,126.86,126.85,2.7905551]
[1742153573310,33.50032576,126.86,126.85,2.7905551]
[1742153574411,33.50032576,126.86,126.85,2.8205551]
[1742153576712,39.14264773,126.86,126.85,2.8205551]
[1742153577859,33.50032576,126.86,126.85,2.8205551]
[1742153580421,41.1,126.87,126.85,2.8205551]
[1742153580733,33.49782576,126.91,126.86,27.19422576]
[1742153580914,27.19422576,126.9,126.86,27.19422576]
[1742153581307,6.3036,126.91,126.86,27.19422576]
[1742153581512,27.19422576,126.9,126.86,27.19422576]
[1742153581708,6.3036,126.91,126.87,27.19422576]
[1742153582134,68.29422576,126.93,126.88,27.19422576]
[1742153582336,41.1,126.93,126.89,27.19422576]
[1742153582530,35.75422576,126.94,126.89,27.19422576]
[1742153582921,35.75422576,126.94,126.86,6.3061]
[1742153583127,27.19422576,126.93,126.88,27.19422576]
[1742153583815,33.49882576,126.89,126.85,9.8966551]
[1742153584015,33.49852576,126.9,126.85,43.39738086]
[1742153584231,6.3043,126.9,126.86,27.19422576]
[1742153584634,27.19422576,126.89,126.85,2.8205551]
[1742153585743,33.49852576,126.9,126.85,30.01478086]
[1742153586522,6.3043,126.9,126.86,27.19422576]
[1742153586722,33.49852576,126.9,126.85,30.01478086]
[1742153587127,27.19422576,126.88,126.85,2.8205551]
[1742153587335,27.19422576,126.89,126.85,2.8205551]
[1742153587846,42.05852576,126.9,126.85,2.8205551]
[1742153588339,42.05852576,126.9,126.85,30.01478086]
[1742153588549,8.56,126.9,126.86,27.19422576]
[1742153589437,14.8641,126.9,126.86,27.19422576]
[1742153590948,42.05832576,126.9,126.85,30.01478086]
[1742153591250,27.19422576,126.89,126.85,2.8205551]
[1742153591430,42.05832576,126.9,126.85,30.01478086]
[1742153591627,8.56,126.9,126.86,27.19422576]
[1742153591826,27.19422576,126.87,126.85,2.8205551]
[1742153592877,33.50022576,126.87,126.85,2.8205551]
[1742153593555,27.19422576,126.86,126.85,2.8205551]
[1742153594250,0.28432314,126.85,126.76,10.6627]
[1742153594430,27.19422576,126.8,126.76,10.6627]
[1742153594825,33.50312576,126.81,126.76,37.85692576]
[1742153595638,6.3083,126.82,126.77,27.19422576]
[1742153596045,27.19422576,126.84,126.79,27.19422576]
[1742153596627,14.8666,126.85,126.81,27.19422576]
[1742153597354,8.56,126.85,126.82,27.19422576]
[1742153597669,6.3043,126.9,126.84,27.19422576]
[1742153597951,14.9267,126.91,126.86,27.19422576]
[1742153598251,42.12092576,126.91,126.86,27.19422576]
[1742153599669,0.063,126.91,126.89,27.19422576]
[1742153599837,0.063,126.91,126.9,27.19422576]
[1742153601037,0.063,126.91,126.88,27.19422576]
[1742153601240,0.063,126.91,126.89,27.19422576]
[1742153602334,0.063,126.91,126.9,27.19422576]
[1742153602529,0.063,126.91,126.9,27.4785489]
[1742153602735,0.063,126.91,126.9,65.47417466]
[1742153602935,0.063,126.95,126.9,65.47417466]
[1742153603135,0.063,126.95,126.94,27.19422576]
[1742153603335,0.063,126.95,126.93,27.19422576]
[1742153603954,0.063,126.95,126.94,27.19422576]
[1742153604256,0.063,126.95,126.94,33.49632576]
[1742153604468,0.063,126.98,126.95,0.28432314]
[1742153604638,0.063,126.98,126.97,27.19422576]
[1742153605658,0.063,126.98,126.97,27.4785489]
[1742153605856,0.063,126.98,126.97,27.19422576]
[1742153606169,27.25722576,126.98,126.93,27.19422576]
[1742153606352,33.55772576,126.98,126.93,27.19422576]
[1742153607452,27.25722576,126.98,126.93,27.19422576]
[1742153607759,0.063,126.98,126.97,27.19422576]
[1742153608061,0.063,126.98,126.96,27.19422576]
[1742153609262,0.063,126.98,126.94,6.3018]
[1742153609560,0.063,126.98,126.95,27.19422576]
[1742153610659,0.063,126.98,126.96,27.19422576]
[1742153611766,0.063,126.98,126.95,27.19422576]
[1742153611944,27.19422576,126.97,126.92,27.19422576]
[1742153612145,0.063,126.98,126.9,37.99562576]
[1742153612146,27.19422576,126.95,126.9,37.99562576]
[1742153612752,33.49732576,126.92,126.87,34.00002576]
[1742153613862,33.49732576,126.92,126.87,40.30552576]
[1742153614266,33.49692576,126.93,126.88,27.19422576]
[1742153614953,27.19422576,126.94,126.89,27.19422576]
[1742153615155,27.19422576,126.92,126.87,34.00002576]
[1742153615356,27.19422576,126.9,126.86,30.63032576]
[1742153615660,27.19422576,126.9,126.86,27.19422576]
[1742153615866,27.19422576,126.92,126.87,27.19422576]
[1742153616167,27.19422576,126.92,126.88,27.19422576]
[1742153616463,27.19422576,126.92,126.87,27.19422576]
[1742153616846,33.49752576,126.92,126.87,27.19422576]
[1742153617340,27.19422576,126.91,126.86,27.19422576]
[1742153617961,27.19422576,126.93,126.88,27.19422576]
[1742153618866,27.19422576,126.93,126.89,27.19422576]
[1742153619069,33.49682576,126.93,126.89,27.19422576]
[1742153619766,33.49492576,126.97,126.92,27.19422576]
[1742153619960,27.19422576,126.95,126.9,27.19422576]
[1742153620167,27.19422576,126.94,126.89,27.19422576]
[1742153620568,27.19422576,126.95,126.91,27.19422576]
[1742153621472,33.49592576,126.95,126.91,27.19422576]
[1742153621671,27.19422576,126.95,126.9,27.19422576]
[1742153621876,27.19422576,126.94,126.89,27.19422576]
[1742153622176,27.19422576,126.93,126.88,27.19422576]
[1742153623272,33.49712576,126.93,126.88,27.19422576]
[1742153623468,33.49712576,126.93,126.89,0.03]
[1742153623469,27.19422576,126.92,126.89,0.03]
[1742153624351,27.19422576,126.9,126.89,0.03]
[1742153624548,54.38845152,126.9,126.89,0.03]
[1742153625160,54.38845152,126.9,126.82,235.61422576]
[1742153625354,27.19422576,126.9,126.82,235.61422576]
[1742153625560,27.19422576,126.87,126.82,235.61422576]
[1742153626071,41.1,126.9,126.83,27.19422576]
[1742153626275,27.19422576,126.89,126.84,27.19422576]
[1742153626454,27.19422576,126.89,126.84,33.50132576]
[1742153626651,48.3931,126.93,126.86,27.19422576]
[1742153626652,33.49802576,126.91,126.86,27.19422576]
[1742153626857,33.49792576,126.91,126.86,27.19422576]
[1742153627172,27.19422576,126.91,126.86,27.19422576]
[1742153627755,27.19422576,126.92,126.87,27.19422576]
[1742153628758,33.49762576,126.92,126.87,27.19422576]
[1742153629179,33.49762576,126.92,126.87,33.49972576]
[1742153629477,33.49702576,126.93,126.88,27.19422576]
[1742153631279,27.19422576,126.92,126.87,27.19422576]
[1742153632073,33.49772576,126.92,126.87,27.19422576]
[1742153633278,27.19422576,126.9,126.85,27.19422576]
[1742153633475,27.19422576,126.89,126.84,30.58672576]
[1742153633774,27.19422576,126.88,126.82,114.30212576]
[1742153633983,35.73422576,126.9,126.85,27.19422576]
[1742153634155,42.03842576,126.9,126.85,33.50072576]
[1742153634357,8.54,126.9,126.86,27.19422576]
[1742153634557,14.8442,126.9,126.86,27.19422576]
[1742153635377,42.03842576,126.9,126.85,27.19422576]
[1742153635580,42.03842576,126.9,126.85,27.22422576]
[1742153636068,27.19422576,126.89,126.85,0.03]
[1742153636264,6.3051,126.88,126.85,0.03]
[1742153636470,33.49932576,126.88,126.85,0.03]
[1742153636673,6.3051,126.88,126.85,0.03]
[1742153637790,33.49892576,126.89,126.85,0.03]
[1742153638087,42.08112576,126.91,126.86,27.19422576]
[1742153638578,27.19422576,126.9,126.85,27.22422576]
[1742153639285,27.19422576,126.89,126.85,0.03]
[1742153639878,6.3051,126.88,126.85,0.03]
[1742153640189,33.49932576,126.88,126.85,0.03]
[1742153640368,6.3051,126.88,126.85,0.03]
[1742153641281,14.8868,126.91,126.87,27.19422576]
[1742153641684,0.063,126.91,126.88,27.19422576]
[1742153642061,0.063,126.91,126.87,27.19422576]
[1742153643079,6.3666,126.91,126.87,27.19422576]
[1742153643587,6.3666,126.91,126.85,0.03]
[1742153643588,27.19422576,126.89,126.85,0.03]
[1742153643894,33.56082576,126.91,126.86,27.19422576]
[1742153644272,6.3666,126.91,126.86,27.19422576]
[1742153645094,27.25722576,126.91,126.86,27.19422576]
[1742153645893,0.063,126.91,126.87,27.19422576]
[1742153646089,0.063,126.91,126.88,27.19422576]
[1742153646398,0.063,126.91,126.89,27.19422576]
[1742153647501,27.25722576,126.91,126.86,27.19422576]
[1742153647699,27.25722576,126.91,126.85,0.03]
[1742153648004,35.71422576,126.9,126.85,27.22422576]
[1742153648696,8.52,126.9,126.86,27.19422576]
[1742153648902,0.063,126.91,126.89,27.19422576]
[1742153650609,0.063,126.91,126.88,27.19422576]
[1742153651768,0.063,126.91,126.87,27.19422576]
[1742153651970,0.063,126.91,126.86,27.19422576]
[1742153652173,0.063,126.91,126.87,27.19422576]
[1742153652374,0.063,126.91,126.88,27.19422576]
[1742153652589,0.063,126.91,126.89,27.19422576]
[1742153652795,0.063,126.91,126.88,27.19422576]
[1742153653897,0.063,126.91,126.87,27.19422576]
[1742153654081,0.063,126.91,126.86,27.19422576]
[1742153654407,0.063,126.91,126.85,27.22422576]
[1742153654408,27.25722576,126.91,126.85,27.22422576]
[1742153654608,27.19422576,126.9,126.85,27.22422576]
[1742153654780,27.25722576,126.91,126.86,27.19422576]
[1742153654981,0.063,126.91,126.88,27.19422576]
[1742153655199,0.063,126.91,126.89,27.19422576]
[1742153657719,0.063,126.91,126.88,27.19422576]
[1742153657917,6.3041,126.9,126.86,27.19422576]
[1742153658107,6.3041,126.9,126.85,27.22422576]
[1742153658316,27.19422576,126.89,126.85,0.03]